[Event "Titled Tuesday Blitz March 22 Late 2022"]
[White "Lauridsen, Jesper Morch"]
[Black "Debray, Christopher"]
[WhiteFideId "1401890"]
[BlackFideId "630810"]
[WhiteElo "2272"]
[BlackElo "2393"]
[Result "0-1"]
[Round "03"]
[TimeControl "180+1"]
[Date "2022.03.22"]
[WhiteClock "0:00:42"]
[BlackClock "0:00:59"]

1. e4 {[%clk 0:03:00]}  e5 {[%clk 0:03:00]} 2. f4 {[%clk 0:02:57]}  exf4 {[%clk 0:02:55]} 3. Nf3 {[%clk 0:02:58]}  Ne7 {[%clk 0:02:55]} 4. d4 {[%clk 0:02:55]}  d5 {[%clk 0:02:56]} 5. Nc3 {[%clk 0:02:51]}  dxe4 {[%clk 0:02:46]} 6. Nxe4 {[%clk 0:02:51]}  Nd5 {[%clk 0:02:47]} 7. Bc4 {[%clk 0:02:51]}  Be7 {[%clk 0:02:40]} 8. O-O {[%clk 0:02:49]}  O-O {[%clk 0:02:40]} 9. c3 {[%clk 0:02:43]}  Nc6 {[%clk 0:02:35]} 10. Qc2 {[%clk 0:02:19]}  Be6 {[%clk 0:02:23]} 11. Bd3 {[%clk 0:02:13]}  h6 {[%clk 0:02:13]} 12. Bb5 {[%clk 0:02:09]}  a6 {[%clk 0:02:01]} 13. Bxc6 {[%clk 0:02:08]}  bxc6 {[%clk 0:02:01]} 14. Ne5 {[%clk 0:02:07]}  Qe8 {[%clk 0:01:49]} 15. Bxf4 {[%clk 0:02:04]}  Nxf4 {[%clk 0:01:47]} 16. Rxf4 {[%clk 0:02:03]}  Bd6 {[%clk 0:01:39]} 17. Raf1 {[%clk 0:01:56]}  f6 {[%clk 0:01:33]} 18. Nc5 {[%clk 0:01:19]}  fxe5 {[%clk 0:01:14]} 19. Rxf8+ {[%clk 0:01:14]}  Bxf8 {[%clk 0:01:14]} 20. Qe4 {[%clk 0:00:47]}  Bxc5 {[%clk 0:01:09]} 21. dxc5 {[%clk 0:00:46]}  Bd5 {[%clk 0:01:05]} 22. Qf5 {[%clk 0:00:45]}  Qf8 {[%clk 0:00:59]} 23. Qxe5 {[%clk 0:00:43]}  Qxc5+ {[%clk 0:00:59]} 24. Kh1 {[%clk 0:00:42]}  Bxg2+ {[%clk 0:00:59]} 0-1


[Site "https://www.chess.com"]

[Event "Titled Tuesday Blitz March 22 Late 2022"]
[White "Le Goff, Ronan"]
[Black "Kohler, Aran"]
[WhiteFideId "612073"]
[BlackFideId "1002856"]
[WhiteElo "2276"]
[BlackElo "2286"]
[Result "1-0"]
[Round "03"]
[TimeControl "180+1"]
[Date "2022.03.22"]
[WhiteClock "0:00:07"]
[BlackClock "0:00:10"]

1. d4 {[%clk 0:03:00]}  Nf6 {[%clk 0:02:58]} 2. c4 {[%clk 0:03:00]}  c5 {[%clk 0:02:57]} 3. d5 {[%clk 0:02:59]}  b5 {[%clk 0:02:57]} 4. cxb5 {[%clk 0:02:59]}  a6 {[%clk 0:02:57]} 5. b6 {[%clk 0:02:52]}  Qxb6 {[%clk 0:02:56]} 6. Nc3 {[%clk 0:02:43]}  g6 {[%clk 0:02:53]} 7. e4 {[%clk 0:02:40]}  d6 {[%clk 0:02:52]} 8. Nf3 {[%clk 0:02:40]}  Bg7 {[%clk 0:02:52]} 9. Nd2 {[%clk 0:02:40]}  O-O {[%clk 0:02:51]} 10. Nc4 {[%clk 0:02:39]}  Qc7 {[%clk 0:02:51]} 11. Be2 {[%clk 0:02:37]}  Nbd7 {[%clk 0:02:51]} 12. O-O {[%clk 0:02:34]}  Rb8 {[%clk 0:02:46]} 13. h3 {[%clk 0:02:32]}  Nb6 {[%clk 0:02:41]} 14. Nxb6 {[%clk 0:02:23]}  Rxb6 {[%clk 0:02:38]} 15. Qc2 {[%clk 0:02:23]}  Nd7 {[%clk 0:02:34]} 16. Be3 {[%clk 0:02:14]}  Rb4 {[%clk 0:02:33]} 17. a3 {[%clk 0:02:13]}  Rb8 {[%clk 0:02:32]} 18. Rac1 {[%clk 0:02:11]}  f5 {[%clk 0:02:30]} 19. Bg5 {[%clk 0:02:07]}  Nf6 {[%clk 0:02:28]} 20. e5 {[%clk 0:02:07]}  dxe5 {[%clk 0:02:28]} 21. Na4 {[%clk 0:01:55]}  Ne4 {[%clk 0:02:12]} 22. Be3 {[%clk 0:01:51]}  Kh8 {[%clk 0:01:21]} 23. b4 {[%clk 0:01:45]}  f4 {[%clk 0:01:15]} 24. Nxc5 {[%clk 0:01:26]}  fxe3 {[%clk 0:01:11]} 25. Nxe4 {[%clk 0:01:26]}  Qxc2 {[%clk 0:01:10]} 26. Rxc2 {[%clk 0:01:25]}  Bf5 {[%clk 0:01:11]} 27. Bf3 {[%clk 0:01:20]}  exf2+ {[%clk 0:01:11]} 28. Rfxf2 {[%clk 0:01:16]}  Bh6 {[%clk 0:01:06]} 29. Rfe2 {[%clk 0:01:14]}  Rbc8 {[%clk 0:01:04]} 30. Rxc8 {[%clk 0:01:12]}  Rxc8 {[%clk 0:01:04]} 31. Nc5 {[%clk 0:01:12]}  a5 {[%clk 0:01:00]} 32. Rxe5 {[%clk 0:01:09]}  axb4 {[%clk 0:01:00]} 33. axb4 {[%clk 0:01:10]}  Bd2 {[%clk 0:00:59]} 34. Na6 {[%clk 0:00:48]}  Bd3 {[%clk 0:00:58]} 35. Nc5 {[%clk 0:00:24]}  Bb5 {[%clk 0:00:53]} 36. Bg4 {[%clk 0:00:21]}  Rf8 {[%clk 0:00:50]} 37. Ne6 {[%clk 0:00:16]}  Rf1+ {[%clk 0:00:48]} 38. Kh2 {[%clk 0:00:15]}  Bxb4 {[%clk 0:00:47]} 39. Re4 {[%clk 0:00:10]}  Bd6+ {[%clk 0:00:45]} 40. g3 {[%clk 0:00:10]}  Rf2+ {[%clk 0:00:45]} 41. Kg1 {[%clk 0:00:10]}  Rf1+ {[%clk 0:00:45]} 42. Kg2 {[%clk 0:00:10]}  Rf2+ {[%clk 0:00:45]} 43. Kxf2 {[%clk 0:00:10]}  h5 {[%clk 0:00:40]} 44. Bf3 {[%clk 0:00:09]}  Kh7 {[%clk 0:00:37]} 45. Nd4 {[%clk 0:00:09]}  Bd3 {[%clk 0:00:31]} 46. Re3 {[%clk 0:00:08]}  Bb1 {[%clk 0:00:31]} 47. Ke2 {[%clk 0:00:07]}  Bc5 {[%clk 0:00:30]} 48. Ne6 {[%clk 0:00:07]}  Bxe3 {[%clk 0:00:29]} 49. Kxe3 {[%clk 0:00:08]}  Bf5 {[%clk 0:00:29]} 50. Bg2 {[%clk 0:00:06]}  Kg8 {[%clk 0:00:22]} 51. Kf4 {[%clk 0:00:06]}  Kf7 {[%clk 0:00:20]} 52. g4 {[%clk 0:00:06]}  hxg4 {[%clk 0:00:20]} 53. Ng5+ {[%clk 0:00:05]}  Kf6 {[%clk 0:00:19]} 54. hxg4 {[%clk 0:00:06]}  Bc2 {[%clk 0:00:18]} 55. Ne4+ {[%clk 0:00:06]}  Kf7 {[%clk 0:00:17]} 56. Nc5 {[%clk 0:00:05]}  Bb1 {[%clk 0:00:16]} 57. Be4 {[%clk 0:00:05]}  Ba2 {[%clk 0:00:16]} 58. Ne6 {[%clk 0:00:04]}  Kf6 {[%clk 0:00:15]} 59. g5+ {[%clk 0:00:04]}  Kf7 {[%clk 0:00:15]} 60. Ke5 {[%clk 0:00:04]}  Bb3 {[%clk 0:00:14]} 61. Nf4 {[%clk 0:00:05]}  Kg7 {[%clk 0:00:13]} 62. Nxg6 {[%clk 0:00:05]}  Bxd5 {[%clk 0:00:11]} 63. Bxd5 {[%clk 0:00:05]}  Kxg6 {[%clk 0:00:10]} 64. Kf4 {[%clk 0:00:05]}  e5+ {[%clk 0:00:10]} 65. Kg4 {[%clk 0:00:05]}  Kg7 {[%clk 0:00:08]} 66. Be4 {[%clk 0:00:05]}  Kf7 {[%clk 0:00:08]} 67. Kf5 {[%clk 0:00:06]}  Kg7 {[%clk 0:00:09]} 68. Kxe5 {[%clk 0:00:06]}  Kf7 {[%clk 0:00:09]} 69. Kf5 {[%clk 0:00:07]}  Kg7 {[%clk 0:00:09]} 70. g6 {[%clk 0:00:08]}  Kg8 {[%clk 0:00:10]} 71. Kg5 {[%clk 0:00:08]}  Kh8 {[%clk 0:00:10]} 72. Kf6 {[%clk 0:00:07]}  Kg8 {[%clk 0:00:10]} 73. Bd5+ {[%clk 0:00:07]}  Kh8 {[%clk 0:00:10]} 74. g7+ {[%clk 0:00:07]} 1-0


[Site "https://www.chess.com"]

[Event "Titled Tuesday Blitz March 22 Late 2022"]
[White "Liu, Leonardo"]
[Black "Swicarz, Maciej"]
[WhiteFideId "30965780"]
[BlackFideId "1113585"]
[WhiteElo "2297"]
[BlackElo "2057"]
[Result "0-1"]
[Round "03"]
[TimeControl "180+1"]
[Date "2022.03.22"]
[WhiteClock "0:00:14"]
[BlackClock "0:00:29"]

1. e4 {[%clk 0:03:00]}  c6 {[%clk 0:02:59]} 2. Nc3 {[%clk 0:03:01]}  d5 {[%clk 0:03:00]} 3. Nf3 {[%clk 0:03:01]}  Nf6 {[%clk 0:02:59]} 4. exd5 {[%clk 0:02:59]}  cxd5 {[%clk 0:02:59]} 5. Bb5+ {[%clk 0:02:59]}  Bd7 {[%clk 0:02:58]} 6. Bxd7+ {[%clk 0:02:56]}  Nbxd7 {[%clk 0:02:59]} 7. O-O {[%clk 0:02:57]}  e6 {[%clk 0:02:59]} 8. d4 {[%clk 0:02:57]}  Bd6 {[%clk 0:02:59]} 9. Re1 {[%clk 0:02:57]}  O-O {[%clk 0:02:58]} 10. Ne5 {[%clk 0:02:58]}  a6 {[%clk 0:02:56]} 11. Bg5 {[%clk 0:02:58]}  Qc7 {[%clk 0:02:55]} 12. f4 {[%clk 0:02:48]}  Rac8 {[%clk 0:02:52]} 13. Re3 {[%clk 0:02:46]}  h6 {[%clk 0:02:47]} 14. Bh4 {[%clk 0:02:36]}  b5 {[%clk 0:02:40]} 15. a3 {[%clk 0:02:35]}  Be7 {[%clk 0:02:21]} 16. Bg3 {[%clk 0:02:05]}  Bd6 {[%clk 0:02:11]} 17. Qd2 {[%clk 0:02:02]}  Nb6 {[%clk 0:02:06]} 18. Bh4 {[%clk 0:01:59]}  Bxe5 {[%clk 0:02:01]} 19. fxe5 {[%clk 0:01:48]}  Nc4 {[%clk 0:02:00]} 20. Qe2 {[%clk 0:01:37]}  Nxe3 {[%clk 0:01:58]} 21. Qxe3 {[%clk 0:01:37]}  Nh7 {[%clk 0:01:45]} 22. Rf1 {[%clk 0:01:36]}  Qc4 {[%clk 0:01:44]} 23. Qf2 {[%clk 0:01:22]}  a5 {[%clk 0:01:41]} 24. Be7 {[%clk 0:01:21]}  b4 {[%clk 0:01:36]} 25. axb4 {[%clk 0:01:20]}  axb4 {[%clk 0:01:36]} 26. Bxf8 {[%clk 0:01:20]}  Rxf8 {[%clk 0:01:34]} 27. Na4 {[%clk 0:01:20]}  Ng5 {[%clk 0:01:30]} 28. Nc5 {[%clk 0:01:17]}  Ne4 {[%clk 0:01:22]} 29. Nxe4 {[%clk 0:01:08]}  dxe4 {[%clk 0:01:23]} 30. h3 {[%clk 0:01:07]}  e3 {[%clk 0:01:20]} 31. Qxe3 {[%clk 0:01:02]}  Qxc2 {[%clk 0:01:21]} 32. Rf2 {[%clk 0:01:02]}  Qb1+ {[%clk 0:01:14]} 33. Kh2 {[%clk 0:01:00]}  Rc8 {[%clk 0:01:14]} 34. Qf3 {[%clk 0:00:54]}  Rc7 {[%clk 0:01:13]} 35. Qa8+ {[%clk 0:00:51]}  Kh7 {[%clk 0:01:12]} 36. Qb8 {[%clk 0:00:41]}  Qe1 {[%clk 0:00:58]} 37. Qxc7 {[%clk 0:00:25]}  Qxf2 {[%clk 0:00:58]} 38. Qc5 {[%clk 0:00:26]}  Qxb2 {[%clk 0:00:56]} 39. Kh1 {[%clk 0:00:23]}  Qc3 {[%clk 0:00:51]} 40. Qe7 {[%clk 0:00:20]}  b3 {[%clk 0:00:49]} 41. Qb7 {[%clk 0:00:16]}  Qc2 {[%clk 0:00:45]} 42. Kh2 {[%clk 0:00:17]}  b2 {[%clk 0:00:45]} 43. Qxf7 {[%clk 0:00:17]}  b1=Q {[%clk 0:00:34]} 44. Qxe6 {[%clk 0:00:18]}  Qf1 {[%clk 0:00:30]} 45. Qd5 {[%clk 0:00:15]}  Qf4+ {[%clk 0:00:29]} 46. Kg1 {[%clk 0:00:14]}  Qd1# {[%clk 0:00:29]} 0-1


[Site "https://www.chess.com"]

[Event "Titled Tuesday Blitz March 22 Late 2022"]
[White "Maltsevskaya, Aleksandra"]
[Black "Fieberg, Samuel"]
[WhiteFideId "24174041"]
[BlackFideId "12901717"]
[WhiteElo "2241"]
[BlackElo "2461"]
[Result "1-0"]
[Round "03"]
[TimeControl "180+1"]
[Date "2022.03.22"]
[WhiteClock "0:00:05"]
[BlackClock "0:00:08"]

1. e4 {[%clk 0:02:55]}  e5 {[%clk 0:02:59]} 2. Nf3 {[%clk 0:02:55]}  Nc6 {[%clk 0:03:00]} 3. Bb5 {[%clk 0:02:55]}  Nf6 {[%clk 0:03:00]} 4. O-O {[%clk 0:02:55]}  Nxe4 {[%clk 0:02:59]} 5. d4 {[%clk 0:02:56]}  Nd6 {[%clk 0:02:57]} 6. Bxc6 {[%clk 0:02:56]}  dxc6 {[%clk 0:02:58]} 7. dxe5 {[%clk 0:02:57]}  Nf5 {[%clk 0:02:58]} 8. Qxd8+ {[%clk 0:02:57]}  Kxd8 {[%clk 0:02:59]} 9. Rd1+ {[%clk 0:02:57]}  Ke8 {[%clk 0:02:59]} 10. Nc3 {[%clk 0:02:58]}  Ne7 {[%clk 0:02:51]} 11. h3 {[%clk 0:02:56]}  Ng6 {[%clk 0:02:50]} 12. b3 {[%clk 0:02:54]}  Be7 {[%clk 0:02:46]} 13. Bb2 {[%clk 0:02:54]}  Be6 {[%clk 0:02:37]} 14. Ne2 {[%clk 0:02:52]}  Rd8 {[%clk 0:02:31]} 15. c4 {[%clk 0:02:51]}  c5 {[%clk 0:02:14]} 16. Nc3 {[%clk 0:02:40]}  Rxd1+ {[%clk 0:01:58]} 17. Rxd1 {[%clk 0:02:41]}  Bd8 {[%clk 0:01:58]} 18. Kh2 {[%clk 0:01:52]}  h5 {[%clk 0:01:53]} 19. g3 {[%clk 0:01:51]}  b6 {[%clk 0:01:31]} 20. Nb5 {[%clk 0:01:40]}  a6 {[%clk 0:01:30]} 21. Na7 {[%clk 0:01:39]}  Ne7 {[%clk 0:01:20]} 22. Nd2 {[%clk 0:01:30]}  c6 {[%clk 0:01:13]} 23. a4 {[%clk 0:01:30]}  Bc7 {[%clk 0:01:12]} 24. Ne4 {[%clk 0:00:36]}  a5 {[%clk 0:00:43]} 25. f4 {[%clk 0:00:19]}  g6 {[%clk 0:00:35]} 26. Nf6+ {[%clk 0:00:08]}  Kf8 {[%clk 0:00:35]} 27. Kg2 {[%clk 0:00:07]}  Kg7 {[%clk 0:00:34]} 28. g4 {[%clk 0:00:07]}  hxg4 {[%clk 0:00:20]} 29. hxg4 {[%clk 0:00:08]}  Bb8 {[%clk 0:00:21]} 30. f5 {[%clk 0:00:08]}  gxf5 {[%clk 0:00:20]} 31. gxf5 {[%clk 0:00:09]}  Bxf5 {[%clk 0:00:18]} 32. e6 {[%clk 0:00:08]}  Bxe6 {[%clk 0:00:07]} 33. Nh5+ {[%clk 0:00:08]}  Kh7 {[%clk 0:00:06]} 34. Bxh8 {[%clk 0:00:08]}  Bxa7 {[%clk 0:00:07]} 35. Bf6 {[%clk 0:00:07]}  Ng6 {[%clk 0:00:06]} 36. Rh1 {[%clk 0:00:06]}  Kg8 {[%clk 0:00:06]} 37. Kf2 {[%clk 0:00:07]}  Bb8 {[%clk 0:00:06]} 38. Kf3 {[%clk 0:00:05]}  Bc7 {[%clk 0:00:07]} 39. Bc3 {[%clk 0:00:04]}  Kf8 {[%clk 0:00:07]} 40. Nf6 {[%clk 0:00:05]}  Ke7 {[%clk 0:00:08]} 41. Rd1 {[%clk 0:00:04]}  Bd6 {[%clk 0:00:08]} 42. Ne4 {[%clk 0:00:04]}  Bc7 {[%clk 0:00:08]} 43. Bf6+ {[%clk 0:00:05]}  Ke8 {[%clk 0:00:08]} 44. Ke3 {[%clk 0:00:05]}  Bf5 {[%clk 0:00:09]} 45. Ng5 {[%clk 0:00:05]}  Be6 {[%clk 0:00:09]} 46. Kf3 {[%clk 0:00:05]}  Bd7 {[%clk 0:00:09]} 47. Re1+ {[%clk 0:00:05]}  Kf8 {[%clk 0:00:09]} 48. Nh7+ {[%clk 0:00:05]}  Kg8 {[%clk 0:00:09]} 49. Rh1 {[%clk 0:00:05]}  Be6 {[%clk 0:00:09]} 50. Be7 {[%clk 0:00:05]}  Kg7 {[%clk 0:00:09]} 51. Nf6 {[%clk 0:00:05]}  Be5 {[%clk 0:00:08]} 52. Rh7# {[%clk 0:00:05]} 1-0


[Site "https://www.chess.com"]

[Event "Titled Tuesday Blitz March 22 Late 2022"]
[White "Martin Barcelo, Carles"]
[Black "Romero Ruscalleda, Josep"]
[WhiteFideId "24561444"]
[BlackFideId "2231859"]
[WhiteElo "1875"]
[BlackElo "2266"]
[Result "1-0"]
[Round "03"]
[TimeControl "180+1"]
[Date "2022.03.22"]
[WhiteClock "0:01:23"]
[BlackClock "0:01:03"]

1. e4 {[%clk 0:03:00]}  g6 {[%clk 0:03:00]} 2. d4 {[%clk 0:03:00]}  Bg7 {[%clk 0:03:01]} 3. Nf3 {[%clk 0:02:58]}  d6 {[%clk 0:03:02]} 4. Bd3 {[%clk 0:02:58]}  Nf6 {[%clk 0:02:45]} 5. c3 {[%clk 0:02:57]}  Nbd7 {[%clk 0:02:44]} 6. O-O {[%clk 0:02:57]}  O-O {[%clk 0:02:43]} 7. h3 {[%clk 0:02:56]}  b6 {[%clk 0:02:39]} 8. Be3 {[%clk 0:02:54]}  Bb7 {[%clk 0:02:39]} 9. Nbd2 {[%clk 0:02:54]}  c5 {[%clk 0:02:39]} 10. Re1 {[%clk 0:02:54]}  e5 {[%clk 0:02:33]} 11. a4 {[%clk 0:02:41]}  Qe7 {[%clk 0:02:31]} 12. dxe5 {[%clk 0:02:31]}  Nxe5 {[%clk 0:02:30]} 13. Nxe5 {[%clk 0:02:31]}  dxe5 {[%clk 0:02:27]} 14. Qe2 {[%clk 0:02:24]}  Rfd8 {[%clk 0:02:21]} 15. a5 {[%clk 0:02:18]}  Rd6 {[%clk 0:02:11]} 16. Nc4 {[%clk 0:02:11]}  Rxd3 {[%clk 0:02:06]} 17. Qxd3 {[%clk 0:02:10]}  Bxe4 {[%clk 0:02:06]} 18. Qe2 {[%clk 0:02:06]}  Rb8 {[%clk 0:02:06]} 19. axb6 {[%clk 0:02:05]}  axb6 {[%clk 0:02:05]} 20. Bg5 {[%clk 0:02:01]}  Bd5 {[%clk 0:02:03]} 21. Qxe5 {[%clk 0:01:58]}  Qxe5 {[%clk 0:01:57]} 22. Nxe5 {[%clk 0:01:59]}  Ne4 {[%clk 0:01:58]} 23. Bf4 {[%clk 0:01:54]}  Re8 {[%clk 0:01:57]} 24. f3 {[%clk 0:01:36]}  Nf6 {[%clk 0:01:15]} 25. Ng4 {[%clk 0:01:22]}  Rxe1+ {[%clk 0:01:06]} 26. Rxe1 {[%clk 0:01:23]}  Nxg4 {[%clk 0:01:05]} 27. hxg4 {[%clk 0:01:22]}  b5 {[%clk 0:01:04]} 28. Re8+ {[%clk 0:01:22]}  Bf8 {[%clk 0:01:03]} 29. Bh6 {[%clk 0:01:23]} 1-0


[Site "https://www.chess.com"]

[Event "Titled Tuesday Blitz March 22 Late 2022"]
[White "Matinian, Nikita"]
[Black "Jacobson, Brandon"]
[WhiteFideId "24129100"]
[BlackFideId "30901561"]
[WhiteElo "2422"]
[BlackElo "2362"]
[Result "1-0"]
[Round "03"]
[TimeControl "180+1"]
[Date "2022.03.22"]
[WhiteClock "0:00:04"]
[BlackClock "0:00:06"]

1. e4 {[%clk 0:03:00]}  c5 {[%clk 0:02:59]} 2. Nc3 {[%clk 0:03:00]}  d6 {[%clk 0:03:00]} 3. f4 {[%clk 0:02:57]}  Nc6 {[%clk 0:02:58]} 4. Nf3 {[%clk 0:02:57]}  g6 {[%clk 0:02:58]} 5. Bb5 {[%clk 0:02:58]}  Bd7 {[%clk 0:02:58]} 6. Bc4 {[%clk 0:02:56]}  Bg7 {[%clk 0:02:59]} 7. d3 {[%clk 0:02:55]}  e6 {[%clk 0:02:56]} 8. f5 {[%clk 0:02:54]}  gxf5 {[%clk 0:02:54]} 9. Ng5 {[%clk 0:02:54]}  Nf6 {[%clk 0:02:26]} 10. O-O {[%clk 0:02:27]}  h6 {[%clk 0:02:13]} 11. Nh3 {[%clk 0:02:23]}  fxe4 {[%clk 0:02:08]} 12. dxe4 {[%clk 0:02:18]}  Ne5 {[%clk 0:02:08]} 13. Be2 {[%clk 0:02:15]}  Bc6 {[%clk 0:02:07]} 14. Qe1 {[%clk 0:02:02]}  Qe7 {[%clk 0:02:00]} 15. Bf4 {[%clk 0:01:59]}  Nfd7 {[%clk 0:01:56]} 16. Qg3 {[%clk 0:01:55]}  Bf6 {[%clk 0:01:49]} 17. Rad1 {[%clk 0:01:49]}  a6 {[%clk 0:01:47]} 18. Nf2 {[%clk 0:01:37]}  O-O-O {[%clk 0:01:43]} 19. a4 {[%clk 0:01:34]}  Bg5 {[%clk 0:01:34]} 20. Nb5 {[%clk 0:01:27]}  Bxf4 {[%clk 0:01:12]} 21. Qxf4 {[%clk 0:01:28]}  axb5 {[%clk 0:01:12]} 22. axb5 {[%clk 0:01:28]}  Qg5 {[%clk 0:01:13]} 23. g3 {[%clk 0:01:12]}  Nf6 {[%clk 0:00:59]} 24. bxc6 {[%clk 0:01:10]}  bxc6 {[%clk 0:00:56]} 25. Ra1 {[%clk 0:01:04]}  Qxf4 {[%clk 0:00:53]} 26. gxf4 {[%clk 0:01:05]}  Ng6 {[%clk 0:00:53]} 27. f5 {[%clk 0:00:52]}  Nf4 {[%clk 0:00:49]} 28. Bf3 {[%clk 0:00:44]}  Rhg8+ {[%clk 0:00:37]} 29. Kh1 {[%clk 0:00:44]}  Kb7 {[%clk 0:00:32]} 30. Ra3 {[%clk 0:00:37]}  Ra8 {[%clk 0:00:21]} 31. fxe6 {[%clk 0:00:22]}  fxe6 {[%clk 0:00:21]} 32. Rb3+ {[%clk 0:00:19]}  Kc7 {[%clk 0:00:22]} 33. Nd3 {[%clk 0:00:10]}  Nxd3 {[%clk 0:00:20]} 34. cxd3 {[%clk 0:00:11]}  Nd7 {[%clk 0:00:19]} 35. Be2 {[%clk 0:00:06]}  Rgf8 {[%clk 0:00:08]} 36. Kg2 {[%clk 0:00:04]}  Rxf1 {[%clk 0:00:08]} 37. Kxf1 {[%clk 0:00:05]}  Ne5 {[%clk 0:00:08]} 38. Kf2 {[%clk 0:00:04]}  Ra1 {[%clk 0:00:07]} 39. Rc3 {[%clk 0:00:03]}  Rb1 {[%clk 0:00:07]} 40. b3 {[%clk 0:00:03]}  Rb2 {[%clk 0:00:08]} 41. Ke3 {[%clk 0:00:03]}  Nd7 {[%clk 0:00:07]} 42. h4 {[%clk 0:00:03]}  e5 {[%clk 0:00:06]} 43. h5 {[%clk 0:00:04]}  Nf6 {[%clk 0:00:06]} 44. Rc1 {[%clk 0:00:03]}  Rxb3 {[%clk 0:00:05]} 45. Rf1 {[%clk 0:00:03]}  Nd7 {[%clk 0:00:05]} 46. Rf7 {[%clk 0:00:04]}  Kd8 {[%clk 0:00:04]} 47. Rh7 {[%clk 0:00:04]}  Nb6 {[%clk 0:00:03]} 48. Rxh6 {[%clk 0:00:03]}  Kc7 {[%clk 0:00:03]} 49. Rh7+ {[%clk 0:00:03]}  Kd8 {[%clk 0:00:03]} 50. h6 {[%clk 0:00:04]}  Rb1 {[%clk 0:00:03]} 51. Rg7 {[%clk 0:00:05]}  Nd7 {[%clk 0:00:02]} 52. h7 {[%clk 0:00:05]}  Rh1 {[%clk 0:00:03]} 53. Rg8+ {[%clk 0:00:05]}  Kc7 {[%clk 0:00:03]} 54. h8=Q {[%clk 0:00:05]}  Rxh8 {[%clk 0:00:04]} 55. Rxh8 {[%clk 0:00:06]}  Nb6 {[%clk 0:00:04]} 56. Rh7+ {[%clk 0:00:06]}  Kd8 {[%clk 0:00:04]} 57. Bg4 {[%clk 0:00:07]}  c4 {[%clk 0:00:03]} 58. Rb7 {[%clk 0:00:06]}  Na4 {[%clk 0:00:02]} 59. Rd7+ {[%clk 0:00:06]}  Kc8 {[%clk 0:00:03]} 60. dxc4 {[%clk 0:00:06]}  Nb6 {[%clk 0:00:01]} 61. Rxd6+ {[%clk 0:00:04]}  Kc7 {[%clk 0:00:02]} 62. Rf6 {[%clk 0:00:03]}  Nxc4+ {[%clk 0:00:03]} 63. Kf2 {[%clk 0:00:03]}  Nd6 {[%clk 0:00:04]} 64. Re6 {[%clk 0:00:03]}  Nxe4+ {[%clk 0:00:04]} 65. Ke3 {[%clk 0:00:03]}  Nc5 {[%clk 0:00:04]} 66. Rxe5 {[%clk 0:00:03]}  Kd6 {[%clk 0:00:05]} 67. Rh5 {[%clk 0:00:03]}  Nb3 {[%clk 0:00:05]} 68. Rh6+ {[%clk 0:00:04]}  Kc5 {[%clk 0:00:05]} 69. Bd1 {[%clk 0:00:04]}  Nd4 {[%clk 0:00:05]} 70. Rh5+ {[%clk 0:00:04]}  Kc4 {[%clk 0:00:05]} 71. Rh4 {[%clk 0:00:05]}  c5 {[%clk 0:00:05]} 72. Rh8 {[%clk 0:00:05]}  Kc3 {[%clk 0:00:06]} 73. Rc8 {[%clk 0:00:05]}  Kb4 {[%clk 0:00:05]} 74. Be2 {[%clk 0:00:05]}  Nc2+ {[%clk 0:00:05]} 75. Kd2 {[%clk 0:00:06]}  Nd4 {[%clk 0:00:05]} 76. Bf1 {[%clk 0:00:06]}  Nb3+ {[%clk 0:00:05]} 77. Kd3 {[%clk 0:00:06]}  Nd4 {[%clk 0:00:06]} 78. Ke4 {[%clk 0:00:06]}  Nb3 {[%clk 0:00:03]} 79. Kd5 {[%clk 0:00:06]}  Kc3 {[%clk 0:00:04]} 80. Bc4 {[%clk 0:00:06]}  Nd2 {[%clk 0:00:04]} 81. Rxc5 {[%clk 0:00:06]}  Kb2 {[%clk 0:00:04]} 82. Rc8 {[%clk 0:00:06]}  Kc3 {[%clk 0:00:04]} 83. Be2+ {[%clk 0:00:06]}  Kb2 {[%clk 0:00:05]} 84. Kd4 {[%clk 0:00:06]}  Nb3+ {[%clk 0:00:05]} 85. Ke3 {[%clk 0:00:07]}  Nc1 {[%clk 0:00:05]} 86. Bd3 {[%clk 0:00:06]}  Nb3 {[%clk 0:00:05]} 87. Rb8 {[%clk 0:00:05]}  Kc3 {[%clk 0:00:06]} 88. Be4 {[%clk 0:00:05]}  Nd2 {[%clk 0:00:05]} 89. Bd5 {[%clk 0:00:05]}  Nf1+ {[%clk 0:00:04]} 90. Ke4 {[%clk 0:00:05]}  Nd2+ {[%clk 0:00:04]} 91. Ke5 {[%clk 0:00:05]}  Kd3 {[%clk 0:00:05]} 92. Rh8 {[%clk 0:00:05]}  Kc3 {[%clk 0:00:05]} 93. Rh3+ {[%clk 0:00:05]}  Kc2 {[%clk 0:00:05]} 94. Kd4 {[%clk 0:00:05]}  Kc1 {[%clk 0:00:02]} 95. Rh2 {[%clk 0:00:04]}  Kc2 {[%clk 0:00:02]} 96. Rg2 {[%clk 0:00:04]}  Kc1 {[%clk 0:00:02]} 97. Kd3 {[%clk 0:00:04]}  Nb1 {[%clk 0:00:02]} 98. Ba2 {[%clk 0:00:03]}  Nd2 {[%clk 0:00:03]} 99. Rf2 {[%clk 0:00:02]}  Ne4 {[%clk 0:00:01]} 100. Kxe4 {[%clk 0:00:02]}  Kd1 {[%clk 0:00:02]} 101. Bc4 {[%clk 0:00:02]}  Ke1 {[%clk 0:00:02]} 102. Re2+ {[%clk 0:00:02]}  Kf1 {[%clk 0:00:03]} 103. Kf3 {[%clk 0:00:02]}  Kg1 {[%clk 0:00:04]} 104. Rf2 {[%clk 0:00:03]}  Kh1 {[%clk 0:00:05]} 105. Kg3 {[%clk 0:00:03]}  Kg1 {[%clk 0:00:06]} 106. Rg2+ {[%clk 0:00:03]}  Kh1 {[%clk 0:00:05]} 107. Ra2 {[%clk 0:00:04]}  Kg1 {[%clk 0:00:06]} 108. Ra1# {[%clk 0:00:04]} 1-0


[Site "https://www.chess.com"]

[Event "Titled Tuesday Blitz March 22 Late 2022"]
[White "Melkumyan, Hrant"]
[Black "Gulecyuz, Deniz"]
[WhiteFideId "13302485"]
[BlackFideId "30921341"]
[WhiteElo "2604"]
[BlackElo "1923"]
[Result "0-1"]
[Round "03"]
[TimeControl "180+1"]
[Date "2022.03.22"]
[WhiteClock "0:00:18"]
[BlackClock "0:00:46"]

1. e4 {[%clk 0:03:00]}  c5 {[%clk 0:03:00]} 2. Nf3 {[%clk 0:03:00]}  Nc6 {[%clk 0:03:00]} 3. Bb5 {[%clk 0:03:00]}  g6 {[%clk 0:02:57]} 4. O-O {[%clk 0:03:00]}  Bg7 {[%clk 0:02:57]} 5. c3 {[%clk 0:02:59]}  e5 {[%clk 0:02:57]} 6. Na3 {[%clk 0:02:51]}  Nge7 {[%clk 0:02:52]} 7. Re1 {[%clk 0:02:49]}  O-O {[%clk 0:02:52]} 8. Nc2 {[%clk 0:02:46]}  a6 {[%clk 0:02:48]} 9. Bf1 {[%clk 0:02:41]}  d6 {[%clk 0:02:47]} 10. d4 {[%clk 0:02:40]}  Bg4 {[%clk 0:02:32]} 11. d5 {[%clk 0:02:40]}  Nb8 {[%clk 0:02:29]} 12. h3 {[%clk 0:02:38]}  Bxf3 {[%clk 0:02:29]} 13. Qxf3 {[%clk 0:02:38]}  f5 {[%clk 0:02:25]} 14. a4 {[%clk 0:02:32]}  Nd7 {[%clk 0:02:15]} 15. exf5 {[%clk 0:02:32]}  gxf5 {[%clk 0:02:12]} 16. Qd1 {[%clk 0:02:30]}  Nf6 {[%clk 0:02:05]} 17. Ne3 {[%clk 0:02:27]}  Qe8 {[%clk 0:01:54]} 18. Nc4 {[%clk 0:02:27]}  Rd8 {[%clk 0:01:52]} 19. Nb6 {[%clk 0:02:21]}  Kh8 {[%clk 0:01:50]} 20. a5 {[%clk 0:02:20]}  Qg6 {[%clk 0:01:46]} 21. Ra4 {[%clk 0:02:20]}  f4 {[%clk 0:01:23]} 22. b4 {[%clk 0:02:16]}  cxb4 {[%clk 0:01:17]} 23. Rxb4 {[%clk 0:02:17]}  f3 {[%clk 0:01:09]} 24. g3 {[%clk 0:01:57]}  e4 {[%clk 0:01:06]} 25. Qa4 {[%clk 0:01:40]}  Nf5 {[%clk 0:01:06]} 26. Kh2 {[%clk 0:01:31]}  Nxg3 {[%clk 0:00:46]} 27. fxg3 {[%clk 0:01:30]}  Nh5 {[%clk 0:00:46]} 28. Rexe4 {[%clk 0:00:29]}  Qxg3+ {[%clk 0:00:46]} 29. Kh1 {[%clk 0:00:29]}  Qf2 {[%clk 0:00:46]} 30. Rg4 {[%clk 0:00:18]}  Qxf1+ {[%clk 0:00:46]} 31. Rg1 {[%clk 0:00:18]}  Qxh3# {[%clk 0:00:46]} 0-1


[Site "https://www.chess.com"]